bitfinex-derivatives/quotes_BTCF0:USTF0_20251028
["timestamp","ask_amount","ask_price","bid_price","bid_amount"]
[1761661794314,0.02253,115960.0,115950.0,0.76746922]
[1761661794514,0.002,115960.0,115950.0,0.76746922]
[1761661796112,0.002,115960.0,115950.0,0.77006922]
[1761661797718,0.002,115960.0,115950.0,1.03158974]
[1761661797913,0.002,115960.0,115950.0,0.77006922]
[1761661798216,0.002,115960.0,115950.0,0.68122052]
[1761661798410,0.002,115960.0,115950.0,0.76746922]
[1761661799111,0.002,115960.0,115950.0,0.74746922]
[1761661800316,0.002,115960.0,115950.0,0.75006922]
[1761661800627,0.002,115960.0,115950.0,0.74746922]
[1761661801422,0.002,115960.0,115950.0,0.75006922]
[1761661803422,0.04668,115960.0,115950.0,0.3997]
[1761661803813,0.04668,115960.0,115950.0,0.4859486]
[1761661804225,0.04668,115960.0,115950.0,0.3997]
[1761661805215,0.04668,115960.0,115950.0,0.485949]
[1761661805618,0.04668,115960.0,115950.0,0.74746952]
[1761661805820,0.002,115960.0,115950.0,0.74746952]
[1761661807511,0.002,115960.0,115950.0,0.75006952]
[1761661807815,0.36477356,115980.0,115970.0,0.1440938]
[1761661807816,0.00397356,115980.0,115970.0,0.1440938]
[1761661808130,0.00397356,115980.0,115970.0,0.67217849]
[1761661809816,0.04866356,115980.0,115970.0,0.7662998]
[1761661810022,0.04866356,115980.0,115970.0,0.7662999]
[1761661810222,0.05466356,115980.0,115970.0,0.5048939]
[1761661810821,0.00997356,115980.0,115970.0,0.5048939]
[1761661811818,0.00997356,115980.0,115970.0,0.7662999]
[1761661812425,0.00997356,115980.0,115970.0,0.5074939]
[1761661812613,0.00997356,115980.0,115970.0,0.7688999]
[1761661812818,0.00987356,115980.0,115970.0,0.7688999]
[1761661813728,0.00687356,115980.0,115970.0,0.7688999]
[1761661814023,0.00901424,115990.0,115980.0,0.1440864]
[1761661814223,0.00901424,115990.0,115980.0,0.7662924]
[1761661814524,0.00901424,115990.0,115980.0,0.5048864]
[1761661814827,0.00901424,115990.0,115980.0,0.7662924]
[1761661815728,0.00901424,115990.0,115980.0,0.85533672]
[1761661816127,0.00901424,115990.0,115980.0,0.85793672]
[1761661816728,0.00901424,115990.0,115980.0,0.85533672]
[1761661817028,0.00901424,115990.0,115980.0,0.85833672]
[1761661817414,0.03062424,115990.0,115980.0,0.85833672]
[1761661817619,0.00901424,115990.0,115980.0,0.5078864]
[1761661818232,0.00901424,115990.0,115980.0,0.85833672]
[1761661819026,0.05370424,115990.0,115980.0,0.06086]
[1761661819323,0.05370424,115990.0,115980.0,0.5078867]
[1761661819530,0.05370424,115990.0,115980.0,0.1470867]
[1761661819730,0.05370424,115990.0,115980.0,0.06086]
[1761661819922,0.05370424,115990.0,115980.0,0.42166]
[1761661820122,0.05370424,115990.0,115980.0,0.06086]
[1761661821627,0.41450424,115990.0,115980.0,0.06086]
[1761661821930,0.43027424,115990.0,115980.0,0.02601]
[1761661822230,0.43027424,115990.0,115980.0,0.04746]
[1761661822431,0.43027424,115990.0,115980.0,0.06086]
[1761661822625,0.43027424,115990.0,115980.0,0.04746]
[1761661824741,0.41710424,115990.0,115980.0,0.06086]
[1761661825626,0.41450424,115990.0,115980.0,0.06086]
[1761661825936,0.41710424,115990.0,115980.0,0.06086]
[1761661826430,0.41450424,115990.0,115980.0,0.06086]
[1761661827133,0.41710424,115990.0,115980.0,0.06086]
[1761661827334,0.43027424,115990.0,115980.0,0.06086]
[1761661827527,1.03027424,115990.0,115980.0,0.04746]
[1761661827726,1.02767424,115990.0,115980.0,0.04746]
[1761661827928,1.03027424,115990.0,115980.0,0.04746]
[1761661828932,0.43027424,115990.0,115980.0,0.04746]
[1761661829937,0.43027424,115990.0,115980.0,0.02601]
[1761661830133,0.78072456,115990.0,115980.0,0.02601]
[1761661830327,0.43027424,115990.0,115980.0,0.02601]
[1761661830530,0.43027424,115990.0,115980.0,0.04807]
[1761661831224,0.43027424,115990.0,115980.0,0.003]
[1761661831429,1.46072456,115990.0,115980.0,0.003]
[1761661831629,0.86072456,115990.0,115980.0,0.003]
[1761661831829,0.67767422,115990.0,115980.0,0.003]
[1761661832238,0.51027424,115990.0,115980.0,0.003]
[1761661832424,0.67767422,115990.0,115980.0,0.003]
[1761661834438,0.67507422,115990.0,115980.0,0.003]
[1761661834632,1.19507422,115990.0,115980.0,0.003]
[1761661834834,0.59507422,115990.0,115980.0,0.04823]
[1761661835142,0.59767422,115990.0,115980.0,0.04823]
[1761661835441,0.59507422,115990.0,115980.0,0.04823]
[1761661835642,0.59767422,115990.0,115980.0,0.04823]
[1761661835838,0.41450424,115990.0,115980.0,0.31481628]
[1761661836146,0.05370424,115990.0,115980.0,0.31481628]
[1761661836332,0.05370424,115990.0,115980.0,0.22858998]
[1761661836842,0.05370424,115990.0,115980.0,0.06119]
[1761661837041,0.05370424,115990.0,115980.0,0.1474164]
[1761661837543,0.05370424,115990.0,115980.0,0.31481638]
[1761661837744,0.05370424,115990.0,115980.0,0.1474164]
[1761661839039,0.05370424,115990.0,115980.0,0.1444164]
[1761661839344,0.05370424,115990.0,115980.0,0.1484164]
[1761661839537,0.05370424,115990.0,115980.0,0.1484162]
[1761661840545,0.05370424,115990.0,115980.0,0.06219]
[1761661841044,0.42767424,115990.0,115980.0,0.04923]
[1761661842047,0.78079817,115990.0,115980.0,0.004]
[1761661844942,0.04387,115960.0,115950.0,0.1442386]
[1761661845353,0.04387,115960.0,115950.0,0.5050386]
[1761661846346,0.04387,115960.0,115950.0,0.5130386]
[1761661846548,0.40467,115970.0,115960.0,0.05819]
[1761661847552,0.04387,115970.0,115960.0,0.1444313]
[1761661848043,0.04387,115970.0,115960.0,0.1454313]
[1761661848235,0.04387,115970.0,115960.0,0.06519]
[1761661848639,0.40467,115970.0,115960.0,0.06519]
[1761661849947,0.41256,115970.0,115960.0,0.06519]
[1761661850642,0.41256,115970.0,115960.0,0.007]
[1761661850840,0.76568393,115970.0,115960.0,0.007]
[1761661851051,0.41516,115970.0,115960.0,0.06519]
[1761661851243,0.40467,115970.0,115960.0,0.06519]
[1761661852041,0.41516,115970.0,115960.0,0.05223]
[1761661852245,0.41256,115970.0,115960.0,0.05223]
[1761661852446,0.41256,115970.0,115960.0,0.06519]
[1761661852840,0.41256,115970.0,115960.0,0.05223]
[1761661853750,0.04387,115970.0,115960.0,0.06519]
[1761661853941,0.40467,115970.0,115960.0,0.06519]
[1761661856742,0.04387,115970.0,115960.0,0.1514313]
[1761661856947,0.04387,115980.0,115970.0,0.1444239]
[1761661857147,0.04387,115980.0,115970.0,0.1470239]
[1761661857357,0.04387,115980.0,115970.0,0.1444239]
[1761661857948,0.04387,115980.0,115970.0,0.05819]
[1761661858351,0.40467,115980.0,115970.0,0.05319]
[1761661858658,0.41748,115980.0,115970.0,0.05319]
[1761661858860,0.41748,115980.0,115970.0,0.04023]
[1761661859251,0.76800393,115980.0,115970.0,0.01817]
[1761661859456,0.04276,115970.0,115960.0,0.05693]
[1761661860747,0.04276,115970.0,115960.0,0.05793]
[1761661860956,0.05557,115970.0,115960.0,0.04497]
[1761661861252,0.05817,115970.0,115960.0,0.04497]
[1761661862161,0.05817,115970.0,115960.0,0.05097]
[1761661862954,0.04276,115970.0,115960.0,0.06454]
[1761661863662,0.04276,115970.0,115960.0,0.1507812]
[1761661864555,0.04276,115970.0,115960.0,0.06454]
[1761661864854,0.05557,115970.0,115960.0,0.05097]
[1761661865054,0.41637,115970.0,115960.0,0.05097]
[1761661865760,0.41897,115970.0,115960.0,0.05097]
[1761661865962,0.41637,115970.0,115960.0,0.05097]
[1761661866765,0.41637,115970.0,115960.0,0.06454]
[1761661867366,0.04276,115970.0,115960.0,0.06454]
[1761661868954,0.04276,115970.0,115960.0,0.1507813]
[1761661869158,0.02107,115970.0,115960.0,0.1507813]
[1761661869357,0.04366,115970.0,115960.0,0.1507813]
[1761661871561,0.04366,115970.0,115960.0,0.06454]
[1761661873166,0.05681,115970.0,115960.0,0.05097]
[1761661873371,0.04366,115970.0,115960.0,0.1511712]
[1761661873870,0.04366,115970.0,115960.0,0.06493]
[1761661875865,0.05941,115970.0,115960.0,0.05097]
[1761661876069,0.42021,115970.0,115960.0,0.05097]
[1761661876270,0.68172858,115970.0,115960.0,0.007]
[1761661878369,0.68172858,115970.0,115960.0,0.02962]
[1761661878370,0.41761,115970.0,115960.0,0.02962]
[1761661878568,0.05769,115950.0,115940.0,7.051e-05]
[1761661878868,0.70000858,115950.0,115940.0,7.051e-05]
[1761661879069,0.04454,115920.0,115910.0,0.0583]
[1761661879462,0.04454,115920.0,115910.0,0.06809675]
[1761661880669,0.04454,115920.0,115910.0,0.08509675]
[1761661880977,0.30605858,115920.0,115910.0,0.08509675]
[1761661881371,0.04454,115920.0,115910.0,0.17137535]
[1761661881875,0.40491,115930.0,115920.0,0.056]
[1761661883366,0.40491,115930.0,115920.0,0.058]
[1761661883564,0.40491,115930.0,115920.0,0.068]
[1761661884270,0.02293,115930.0,115920.0,0.0706]
[1761661884472,0.67937858,115930.0,115920.0,0.05517]
[1761661884665,0.31857858,115930.0,115920.0,0.05517]
[1761661884865,0.67937858,115930.0,115920.0,0.05517]
[1761661885569,0.31857858,115930.0,115920.0,0.05517]
[1761661885875,0.67937858,115930.0,115920.0,0.05517]
[1761661886274,0.68197858,115930.0,115920.0,0.012]
[1761661886964,0.75204909,115930.0,115920.0,0.012]
[1761661887166,0.05726,115900.0,115890.0,0.05739197]
[1761661887364,0.68224867,115900.0,115890.0,0.03590197]
[1761661887670,0.68224867,115900.0,115890.0,0.00431425]
[1761661888276,0.95376725,115900.0,115890.0,0.00431425]
[1761661889481,0.95376725,115900.0,115890.0,0.00531425]
[1761661889678,0.05749,115880.0,115870.0,7.519e-05]
[1761661889879,1.04060858,115880.0,115870.0,7.519e-05]
[1761661890074,1.04320858,115880.0,115870.0,7.519e-05]
[1761661890282,1.10320858,115880.0,115870.0,7.519e-05]
[1761661890576,0.0573,115860.0,115850.0,0.00431574]
[1761661890783,0.67961858,115860.0,115850.0,0.01392755]
[1761661890981,0.67961858,115860.0,115850.0,0.02625574]
[1761661891480,0.67961858,115860.0,115850.0,0.04856574]
[1761661892474,0.67961858,115860.0,115850.0,0.02625574]
[1761661892475,0.68221858,115860.0,115850.0,0.02625574]
[1761661893677,0.68821858,115860.0,115850.0,0.03588505]
[1761661894274,0.68831725,115860.0,115850.0,0.00431574]
[1761661894476,0.68571725,115860.0,115850.0,0.00431574]
[1761661895071,1.04651725,115860.0,115850.0,0.00431574]
[1761661895268,1.04651725,115860.0,115850.0,0.01425561]
[1761661896486,1.04911725,115860.0,115850.0,0.00431574]
[1761661897278,1.04911725,115860.0,115850.0,0.01394105]
[1761661897785,1.04651725,115860.0,115850.0,0.03588105]
[1761661897978,1.04651725,115860.0,115850.0,0.05819105]
[1761661898477,1.04651725,115860.0,115850.0,0.01394105]
[1761661899068,1.04651725,115860.0,115850.0,0.00431574]
[1761661899367,1.04911725,115860.0,115850.0,0.00431574]
[1761661899573,1.05906088,115860.0,115850.0,0.00431574]
[1761661899882,0.0573,115830.0,115820.0,0.05739]
[1761661900182,0.65243773,115830.0,115820.0,0.05739]
[1761661900384,0.04415,115820.0,115810.0,0.06170723]
[1761661900584,0.30566858,115820.0,115810.0,0.06170723]
[1761661900882,0.04415,115820.0,115810.0,0.06170723]
[1761661902479,0.04415,115820.0,115810.0,0.06370723]
[1761661902776,7.81e-05,115830.0,115820.0,0.05739]
[1761661902978,0.0442281,115830.0,115820.0,0.05999]
[1761661903277,0.0442281,115830.0,115820.0,0.05739]
[1761661903876,0.4050281,115830.0,115820.0,0.05739]
[1761661904177,0.4050281,115830.0,115810.0,0.00964]
[1761661904178,0.06743999,115820.0,115810.0,0.00964]
[1761661904482,0.42823999,115820.0,115810.0,0.00964]
[1761661904877,0.42823999,115820.0,115810.0,0.0959927]
[1761661905277,0.51459229,115820.0,115810.0,0.00964]
[1761661905978,0.51459229,115820.0,115810.0,0.01664]
[1761661906179,0.51459229,115820.0,115810.0,0.01214]
[1761661906686,0.51459229,115820.0,115810.0,0.0984928]
[1761661906886,0.51459229,115820.0,115810.0,0.01214]
[1761661907088,0.51459229,115820.0,115810.0,0.01414]
[1761661907685,0.51459229,115820.0,115810.0,0.1030929]
[1761661907989,0.51459229,115820.0,115810.0,0.01674]
[1761661908379,0.51459229,115820.0,115810.0,0.1030929]
[1761661909281,0.49318229,115820.0,115810.0,0.96461148]
[1761661909476,0.49318229,115820.0,115810.0,0.7030929]
[1761661909678,0.49318229,115820.0,115810.0,0.96461148]
[1761661909878,0.4604423,115820.0,115810.0,0.96461148]
[1761661910189,0.44641168,115820.0,115810.0,0.96461148]
[1761661910382,0.46915168,115820.0,115810.0,0.96461148]
[1761661910688,0.46915168,115820.0,115810.0,0.7030929]
[1761661911077,0.46915168,115820.0,115810.0,0.1030929]
[1761661911783,0.49056168,115820.0,115810.0,0.1030929]
[1761661912486,0.50385168,115820.0,115810.0,0.1030929]
[1761661913078,0.50385168,115820.0,115810.0,0.01414]
[1761661913282,0.50385168,115820.0,115810.0,0.1004927]
[1761661913481,0.50385168,115820.0,115810.0,0.1030927]
[1761661913685,0.50385168,115820.0,115810.0,0.01414]
[1761661914085,0.50385168,115820.0,115810.0,0.61414]
[1761661914278,0.50385168,115820.0,115810.0,0.1004925]
[1761661914480,0.50385168,115820.0,115810.0,0.01414]
[1761661915087,0.50385168,115820.0,115810.0,0.1004925]
[1761661915287,0.50385168,115820.0,115810.0,0.01414]
[1761661915892,0.50385168,115820.0,115810.0,0.1030925]
[1761661916091,0.51385167,115820.0,115810.0,0.1004925]
[1761661916496,0.51385167,115820.0,115810.0,0.1030925]
[1761661917689,0.51385167,115820.0,115810.0,0.1004925]
[1761661917892,0.51385167,115820.0,115810.0,0.1030925]
[1761661918689,0.42749937,115820.0,115810.0,0.7030925]
[1761661920191,0.42749937,115820.0,115810.0,0.61414]
[1761661920391,0.42749937,115820.0,115810.0,0.7004925]
[1761661920696,0.42749937,115820.0,115810.0,0.01414]
[1761661921398,0.02306,115790.0,115780.0,0.13405969]
[1761661921586,0.40511,115790.0,115780.0,0.17838969]
[1761661921896,0.44523,115790.0,115780.0,0.17838969]
[1761661922294,0.44523,115790.0,115780.0,0.14038969]
[1761661922487,0.44523,115790.0,115780.0,0.14298969]
[1761661922888,0.44523,115790.0,115780.0,0.14598969]
[1761661923192,0.44633124,115790.0,115780.0,0.07001919]
[1761661923791,0.44533124,115790.0,115780.0,0.05701919]
[1761661923986,0.44533124,115790.0,115780.0,0.14439409]
[1761661924798,0.44533124,115790.0,115780.0,0.14439459]
[1761661924996,0.44533124,115790.0,115780.0,0.43805319]
[1761661925205,0.44533124,115790.0,115780.0,0.14499459]
[1761661925393,0.44533124,115790.0,115780.0,0.40005319]
[1761661925596,0.44533124,115790.0,115780.0,0.14499459]
[1761661925799,0.44533124,115790.0,115780.0,0.18299459]
[1761661926105,0.40521124,115790.0,115780.0,0.43805319]
[1761661926299,0.44533124,115790.0,115780.0,0.05861919]
[1761661926600,0.44533124,115790.0,115780.0,0.05601919]
[1761661927397,0.44533124,115790.0,115780.0,0.14239409]
[1761661927600,0.44533124,115790.0,115780.0,0.14499409]
[1761661928304,0.44533124,115790.0,115780.0,0.01168919]
[1761661928305,0.70038984,115790.0,115780.0,0.01168919]
[1761661928702,0.44533124,115790.0,115780.0,0.01168919]
[1761661929093,0.44533124,115790.0,115780.0,0.07897919]
[1761661929594,0.44533124,115790.0,115780.0,0.01168919]
[1761661931393,0.70038984,115790.0,115780.0,0.01168919]
[1761661931595,0.70298984,115790.0,115780.0,0.01168919]
[1761661931805,0.17931999,115780.0,115770.0,8.653e-05]
[1761661932099,0.16932,115760.0,115750.0,0.58545]
[1761661932304,0.90091999,115760.0,115750.0,0.65366]
[1761661932602,0.90091999,115760.0,115750.0,0.1355]
[1761661932797,0.13027,115740.0,115730.0,0.51914591]
[1761661932992,0.13027,115740.0,115730.0,0.15080735]
[1761661932993,0.51607933,115740.0,115730.0,0.15080735]
[1761661933195,0.5161589,115740.0,115730.0,0.23721955]
[1761661933707,0.5161589,115740.0,115730.0,0.23981955]
[1761661934295,0.5161589,115740.0,115730.0,0.23721955]
[1761661934497,0.5161589,115740.0,115730.0,0.15080735]
[1761661935298,0.5161589,115740.0,115730.0,0.23821965]
[1761661936218,0.8779589,115740.0,115730.0,0.15180735]
[1761661936810,0.88795889,115740.0,115730.0,0.15180735]
[1761661937011,0.88795889,115740.0,115730.0,0.01630735]
[1761661937314,0.89055889,115740.0,115730.0,0.01630735]
[1761661937518,0.88795889,115740.0,115730.0,0.01630735]
[1761661937913,0.89055889,115740.0,115730.0,0.01630735]
[1761661939816,0.17931999,115710.0,115700.0,0.06736255]
[1761661940016,0.90091999,115710.0,115700.0,0.13557255]
[1761661941116,0.90091999,115710.0,115700.0,7.255e-05]
[1761661941522,0.90091999,115710.0,115700.0,0.13557255]
[1761661941907,0.90091999,115710.0,115700.0,0.14929457]
[1761661942613,0.90091999,115710.0,115700.0,0.14669457]
[1761661942818,0.90091999,115710.0,115700.0,0.23572917]
[1761661943121,0.90091999,115710.0,115700.0,0.27358917]
[1761661943321,0.85187,115710.0,115700.0,0.63074677]
[1761661943712,0.85187,115710.0,115700.0,0.27358917]
[1761661943916,0.85187,115710.0,115700.0,0.27458917]
[1761661944113,0.7216,115710.0,115700.0,0.87458917]
[1761661944318,0.83522595,115710.0,115700.0,0.63174677]
[1761661944822,0.87427595,115710.0,115700.0,0.23672917]
[1761661945122,0.87427595,115710.0,115700.0,0.27458917]
[1761661945319,0.47442595,115710.0,115700.0,0.27458917]
[1761661945518,0.34415595,115710.0,115700.0,0.63174677]
[1761661945723,0.31412369,115710.0,115700.0,0.71817345]
[1761661946525,0.44439369,115710.0,115700.0,0.71817345]
[1761661946821,0.44439369,115710.0,115700.0,0.27458917]
[1761661947022,0.84424369,115710.0,115700.0,0.14769457]
[1761661947223,0.84684369,115710.0,115700.0,0.23412927]
[1761661947425,0.84684369,115710.0,115700.0,0.14769457]
[1761661947618,0.85684368,115710.0,115700.0,0.14769457]
[1761661948623,0.85684368,115710.0,115700.0,0.23412967]
[1761661948819,0.85424368,115710.0,115700.0,0.23412967]
[1761661949216,0.85684368,115710.0,115700.0,0.14769457]
[1761661949608,0.85684368,115710.0,115700.0,0.23412937]
[1761661950220,0.85424368,115710.0,115700.0,0.23672937]
[1761661950524,0.81519368,115710.0,115700.0,0.63034697]
[1761661950710,0.85326368,115710.0,115700.0,0.23412937]
[1761661952422,0.85586368,115710.0,115700.0,0.14769457]
[1761661952622,0.85586368,115710.0,115700.0,0.23412917]
[1761661952822,0.85326368,115710.0,115700.0,0.23672917]
[1761661953726,0.83360127,115710.0,115700.0,0.14769457]
[1761661954225,0.83360127,115710.0,115700.0,0.23672927]
[1761661954421,0.4206867,115710.0,115700.0,0.27318927]
[1761661954814,0.42532,115720.0,115710.0,0.2532473]
[1761661955019,0.3608,115720.0,115710.0,0.6130049]
[1761661955825,0.48796,115730.0,115720.0,0.2532398]
[1761661956126,0.48796,115730.0,115720.0,0.6129974]
[1761661956322,0.48796,115730.0,115720.0,0.5765374]
[1761661956528,0.52603,115730.0,115720.0,0.2193798]
[1761661956730,0.52863,115730.0,115720.0,0.13036]
[1761661956922,0.52863,115730.0,115720.0,0.06249]
[1761661957120,0.16523,115710.0,115700.0,0.22798527]
[1761661957622,0.52863,115710.0,115700.0,0.22798527]
[1761661958729,0.52863,115710.0,115700.0,0.14155457]
[1761661959231,0.51825852,115710.0,115700.0,0.01119457]
[1761661960830,0.51825852,115710.0,115700.0,0.01219457]
[1761661961630,0.52085852,115710.0,115700.0,0.01219457]
[1761661962329,0.51825852,115710.0,115700.0,0.01219457]
[1761661962631,0.52285852,115710.0,115700.0,0.01219457]
[1761661964223,0.88008466,115710.0,115700.0,0.00107255]
[1761661964530,0.17782999,115700.0,115690.0,0.00269426]
[1761661964722,0.53602999,115700.0,115690.0,0.00269426]
[1761661964926,0.53862999,115700.0,115690.0,0.01345125]
[1761661965128,0.89578759,115700.0,115690.0,0.01345125]
[1761661965322,0.89578759,115700.0,115690.0,0.00269426]
[1761661965626,0.89578759,115700.0,115690.0,4.26e-06]
[1761661965934,0.16523,115660.0,115650.0,0.2211551]
[1761661966231,0.87922321,115660.0,115650.0,0.0043232]
[1761661966422,0.52206561,115660.0,115650.0,0.0043232]
[1761661966822,0.52206561,115660.0,115650.0,0.1346832]
[1761661967024,0.52206561,115660.0,115650.0,0.14530738]
[1761661967420,0.52206561,115660.0,115650.0,0.01494738]
[1761661968028,0.52406561,115660.0,115650.0,0.01494738]
[1761661968228,0.88382321,115660.0,115650.0,0.0043232]
[1761661968429,0.17522999,115620.0,115610.0,0.1346847]
[1761661968635,0.13715999,115620.0,115610.0,0.1346847]
[1761661968929,0.00999999,115620.0,115610.0,0.5783443]
[1761661969124,0.48796,115630.0,115620.0,0.2533145]
[1761661969434,0.48796,115630.0,115620.0,0.16942]
[1761661969628,0.48796,115630.0,115620.0,0.13296]
[1761661970032,0.48796,115630.0,115620.0,0.13036]
[1761661970232,0.12716,115620.0,115610.0,0.1547832]
[1761661970427,0.48803881,115620.0,115610.0,0.1547832]
[1761661970734,0.48803881,115620.0,115610.0,0.1483832]
[1761661970933,0.48803881,115620.0,115610.0,0.234885]
[1761661971233,0.48803881,115620.0,115610.0,0.5940426]
[1761661971927,7.881e-05,115620.0,115610.0,0.9548426]
[1761661972134,7.881e-05,115620.0,115610.0,0.9528426]
[1761661972434,0.002,115630.0,115620.0,0.2533146]
[1761661972625,0.002,115630.0,115620.0,0.9712722]
[1761661973027,0.48996,115630.0,115620.0,0.16682]
[1761661973334,0.12922938,115630.0,115620.0,0.6104721]
[1761661973535,0.00206938,115630.0,115620.0,0.9712721]
[1761661973735,6.938e-05,115630.0,115620.0,0.9712721]
[1761661973936,0.12722938,115630.0,115620.0,0.52762]
[1761661974235,0.48802938,115630.0,115620.0,0.13036]
[1761661974628,0.49002938,115630.0,115620.0,0.13836]
[1761661974828,0.50002937,115630.0,115620.0,0.008]
[1761661975232,0.50002937,115630.0,115620.0,0.07049]
[1761661976030,0.50002937,115630.0,115620.0,0.008]
[1761661976834,0.50002937,115630.0,115620.0,0.13836]
[1761661977036,0.50002937,115630.0,115620.0,0.6210721]
[1761661977344,0.50002937,115630.0,115620.0,0.17482]
[1761661977546,0.50002937,115630.0,115620.0,0.008]
[1761661978945,0.50002937,115630.0,115620.0,0.2167545]
[1761661979639,0.50002937,115630.0,115620.0,0.07309]
[1761661979942,0.50002937,115630.0,115620.0,0.008]
[1761661980242,0.85978697,115630.0,115620.0,0.008]
[1761661980441,0.11882,115620.0,115610.0,0.0043247]
[1761661980647,0.8393776,115620.0,115610.0,0.0043247]
[1761661981842,0.8403776,115620.0,115610.0,0.0073247]
[1761661982143,0.11882,115590.0,115580.0,8.558e-05]
[1761661982441,1.19764404,115590.0,115580.0,0.0110378]
[1761661982640,1.80024404,115590.0,115580.0,0.0110378]
[1761661982947,1.44048644,115590.0,115580.0,0.0110378]
[1761661983144,0.84048644,115590.0,115580.0,0.0110378]
[1761661984543,0.85048643,115590.0,115580.0,0.2199322]
[1761661984740,0.85048643,115590.0,115580.0,0.2555522]
[1761661985043,0.85048643,115590.0,115580.0,0.1360078]
[1761661985238,1.20764403,115590.0,115580.0,0.0110378]
[1761661985539,1.20764403,115590.0,115580.0,0.0130378]
[1761661985740,1.20964403,115590.0,115580.0,0.0130378]
[1761661985937,0.85248643,115590.0,115580.0,0.0130378]
[1761661986240,1.21224403,115590.0,115580.0,0.00208558]
[1761661986548,0.85248643,115590.0,115580.0,0.00208558]
[1761661987247,1.20964403,115590.0,115580.0,0.00208558]
[1761661987542,0.2894,115580.0,115570.0,0.0043262]
[1761661987749,1.0099576,115580.0,115570.0,0.0043262]
[1761661988247,0.11879999,115570.0,115560.0,0.01106761]
[1761661988443,0.1088,115540.0,115530.0,0.19713589]
[1761661988635,0.14029136,115540.0,115530.0,0.11057769]
[1761661988842,0.50109136,115540.0,115530.0,0.11057769]
[1761661989043,0.50109136,115540.0,115530.0,0.00432769]
[1761661989439,0.50109136,115540.0,115530.0,0.10160518]
[1761661989633,0.50109136,115540.0,115530.0,0.20785518]
[1761661989841,0.00309136,115540.0,115530.0,1.17861278]
[1761661990040,0.00309136,115540.0,115530.0,0.57861278]
[1761661990241,0.00309136,115540.0,115530.0,0.22345518]
[1761661990847,0.00309136,115540.0,115530.0,0.94141278]
[1761661991048,0.11189136,115540.0,115530.0,0.22345518]
[1761661991545,0.05792136,115540.0,115530.0,0.21245518]
[1761661991746,0.05483,115570.0,115540.0,0.1928044]
[1761661991958,0.1088,115570.0,115560.0,0.2264043]
[1761661992452,0.1088,115570.0,115560.0,0.2290043]
[1761661992852,0.10890997,115570.0,115560.0,0.5861619]
[1761661993053,0.11290997,115570.0,115560.0,0.9469619]
[1761661993455,0.05893997,115570.0,115560.0,0.9469619]
[1761661993752,0.05483,115590.0,115580.0,0.2263911]
[1761661993941,0.50451,115600.0,115590.0,0.10625]
[1761661994142,0.50451,115600.0,115590.0,0.1927667]
[1761661994447,0.50451,115600.0,115590.0,0.5525243]
[1761661994448,0.41563,115600.0,115590.0,0.5525243]
[1761661994642,0.10889668,115600.0,115590.0,0.5525243]
[1761661994857,9.668e-05,115600.0,115590.0,0.5525243]
[1761661995151,0.41563,115610.0,115600.0,0.2263793]
[1761661995353,0.4696,115610.0,115600.0,0.13987]
[1761661995554,0.47229668,115610.0,115600.0,0.13987]
[1761661995856,0.47229668,115610.0,115600.0,0.10625]
[1761661996058,0.47229668,115610.0,115600.0,0.1927593]
[1761661996257,0.36090997,115610.0,115600.0,0.5835369]
[1761661996555,0.00010997,115610.0,115600.0,1.5469369]
[1761661996749,0.3608,115620.0,115610.0,0.1927518]
[1761661996956,0.3608,115620.0,115610.0,0.5525094]
[1761661997155,0.4696,115620.0,115610.0,0.5525094]
[1761661997556,0.3608,115620.0,115610.0,0.5525094]
[1761661997753,0.4696,115630.0,115620.0,0.2263644]
[1761661997952,0.46965851,115630.0,115620.0,0.59872682]
[1761661998255,0.41568851,115630.0,115620.0,0.59872682]
[1761661998561,5.851e-05,115630.0,115620.0,0.49683521]
[1761661998761,0.05488851,115630.0,115620.0,0.49423521]
[1761661998958,5.851e-05,115630.0,115620.0,0.49683521]
[1761661999466,0.47265851,115630.0,115620.0,0.49883521]
[1761661999757,0.00305851,115630.0,115620.0,0.49883521]
[1761661999957,0.00305851,115630.0,115620.0,0.49608181]
[1761662000763,0.00305851,115630.0,115620.0,0.85688181]
[1761662001062,0.00305851,115630.0,115620.0,0.9268872]
[1761662001252,0.47535519,115630.0,115620.0,0.01503341]
[1761662001562,0.47535519,115630.0,115620.0,0.12128341]
[1761662003764,0.47795519,115630.0,115620.0,0.01503341]
[1761662004553,0.47265851,115630.0,115620.0,0.01503341]
[1761662004754,0.47535519,115630.0,115620.0,0.37712081]
[1761662006263,0.47265851,115630.0,115620.0,0.49723521]
[1761662006658,0.47265851,115630.0,115620.0,0.49983521]
[1761662006861,0.11185851,115630.0,115620.0,0.49983521]
[1761662007060,0.47265851,115630.0,115620.0,0.49983521]
[1761662007963,0.47535519,115630.0,115620.0,0.49723521]
[1761662008363,0.47535519,115630.0,115620.0,0.24139781]
[1761662008563,0.47535519,115630.0,115620.0,0.49723521]
[1761662010265,0.47265851,115630.0,115620.0,0.49723521]
[1761662010466,0.47535519,115630.0,115620.0,0.49723521]
[1761662011072,0.47535519,115630.0,115620.0,0.56673868]
[1761662011667,0.36385851,115630.0,115620.0,0.56673868]
[1761662011873,0.00305851,115630.0,115620.0,0.56933868]
[1761662012171,0.00305851,115630.0,115620.0,0.93013868]
[1761662014366,0.0045,115640.0,115630.0,0.1981469]
[1761662014573,0.0045,115640.0,115630.0,0.7308974]
[1761662014771,0.47131,115670.0,115660.0,0.11166]
[1761662014977,0.83211,115670.0,115660.0,0.11166]
[1761662015271,0.83480668,115670.0,115660.0,0.3134974]
[1761662015658,0.83480668,115670.0,115660.0,0.3985374]
[1761662015862,0.83211,115670.0,115660.0,0.3985374]
[1761662016172,0.11051,115670.0,115660.0,0.4011374]
[1761662016671,0.05291,115670.0,115660.0,0.4011374]
[1761662016969,0.47581,115680.0,115670.0,0.11166]
[1761662017173,0.47581,115680.0,115670.0,0.3674974]
[1761662017378,0.51037668,115680.0,115670.0,0.11166]
[1761662017764,0.51037668,115680.0,115670.0,0.3674974]
[1761662017965,0.47850668,115680.0,115670.0,0.3674974]
[1761662018164,0.51037668,115680.0,115670.0,0.3674974]
[1761662018566,0.47581,115680.0,115670.0,0.3674974]
[1761662018873,0.3653,115680.0,115670.0,0.3674974]
[1761662019071,0.3753,115680.0,115670.0,0.3720974]
[1761662019571,0.0145,115680.0,115670.0,0.3720974]
[1761662020175,0.0145,115680.0,115670.0,0.7328974]
[1761662020674,0.3608,115700.0,115670.0,0.8193465]
[1761662020874,0.3608,115700.0,115690.0,0.3674974]
[1761662020875,0.47131,115700.0,115690.0,0.3674974]
[1761662021071,0.11051,115700.0,115690.0,0.3674974]
[1761662021269,0.05291,115690.0,115680.0,0.7053374]